[Event "3rd FIDE WCCC Blitz G08 2019"]
[Site "Minsk"]
[Date "2019.08.18"]
[Round "7.6"]
[White "Kudrina, Evelina"]
[Black "Ukrainskaya, Ilona"]
[Result "1-0"]
[ECO "D53"]
[WhiteElo "1194"]
[BlackElo "1211"]
[Annotator "NA"]
[PlyCount "23"]
[EventDate "2019.08.18"]
[EventType "swiss"]
[EventCountry "BLR"]
[SourceTitle "playchess.com"]
[Source "ChessBase"]
[SourceQuality "1"]
[TimeControl "300+2"]

1. d4 {[%emt 0:00:00]} d5 {[%emt 0:00:00]} 2. c4 {[%emt 0:00:01]} e6 {[%emt 0:00:02]} 3. Nc3 {[%emt 0:00:01]} Nf6 {[%emt 0:00:02]} 4. Bg5 {[%emt 0:00:01]} Be7 {[%emt 0:00:06]} 5. e3 {[%emt 0:00:02]} O-O {[%emt 0:00:05]} 6. h4 {[%emt 0:00:08]} h6 {[%emt 0:00:08]} 7. Nh3 {[%emt 0:00:11]} hxg5 {[%emt 0:00:51]} 8. hxg5 {[%emt 0:00:01]} Ne8 {[%emt 0:00:21]} 9. Qh5 {[%emt 0:00:04]} f6 {[%emt 0:00:55]} 10. g6 {[%emt 0:00:02]} Rf7 {[%emt 0:01:21]} 11. Qh7+ {[%emt 0:00:07]} Kf8 {[%emt 0:00:05]} 12. Qh8# {[%emt 0:00:01]} 1-0

[Event "3rd FIDE WCCC Blitz G08 2019"]
[Site "Minsk"]
[Date "2019.08.18"]
[Round "8.1"]
[White "Tong, Thai Hoang An"]
[Black "Preobrazhenskaya, Diana"]
[Result "0-1"]
[ECO "C55"]
[WhiteElo "1208"]
[BlackElo "1361"]
[Annotator "NA"]
[PlyCount "122"]
[EventDate "2019.08.18"]
[EventType "swiss"]
[EventCountry "BLR"]
[SourceTitle "playchess.com"]
[Source "ChessBase"]
[SourceQuality "1"]
[TimeControl "300+2"]

1. e4 {[%emt 0:00:01]} e5 {[%emt 0:00:00]} 2. Nf3 {[%emt 0:00:01]} Nc6 {[%emt 0:00:02]} 3. d4 {[%emt 0:00:02]} exd4 {[%emt 0:00:02]} 4. Bc4 {[%emt 0:00:01]} Nf6 {[%emt 0:00:04]} 5. O-O {[%emt 0:00:02]} d6 {[%emt 0:00:16]} 6. Nxd4 {[%emt 0:00:07]} Be7 {[%emt 0:00:13]} 7. Nc3 {[%emt 0:00:03]} O-O {[%emt 0:00:09]} 8. Bf4 {[%emt 0:00:09]} Ne5 {[%emt 0:00:16]} 9. Bb3 {[%emt 0:00:11]} Ng6 {[%emt 0:00:06]} 10. Be3 {[%emt 0:00:03]} Ng4 {[%emt 0:00:11]} 11. Nf5 {[%emt 0:00:10]} Nxe3 {[%emt 0:00:15]} 12. Nxe3 {[%emt 0:00:05]} c6 {[%emt 0:00:19]} 13. f4 {[%emt 0:00:17]} Kh8 {[%emt 0:00:26]} 14. f5 {[%emt 0:00:05]} Ne5 {[%emt 0:00:04]} 15. Nc4 {[%emt 0:00:01]} Nxc4 {[%emt 0:00:07]} 16. Bxc4 {[%emt 0:00:03]} Bf6 {[%emt 0:00:08]} 17. Qd3 {[%emt 0:00:02]} Qe7 {[%emt 0:00:04]} 18. Rad1 {[%emt 0:00:07]} Rd8 {[%emt 0:00:08]} 19. Qg3 {[%emt 0:00:03]} Be5 {[%emt 0:00:11]} 20. Qf3 {[%emt 0:00:03]} Qf6 {[%emt 0:00:06]} 21. Rd2 {[%emt 0:00:13]} b5 {[%emt 0:00:12]} 22. Bb3 {[%emt 0:00:02]} a5 {[%emt 0:00:06]} 23. a3 {[%emt 0:00:08]} a4 {[%emt 0:00:21]} 24. Ba2 {[%emt 0:00:03]} Qh4 {[%emt 0:00:15]} 25. h3 {[%emt 0:00:09]} Bd7 {[%emt 0:00:20]} 26. Bxf7 {[%emt 0:00:04]} Rf8 {[%emt 0:00:09]} 27. Ba2 {[%emt 0:00:04]} g6 {[%emt 0:00:29]} 28. Qg4 {[%emt 0:00:17]} Qf6 {[%emt 0:00:20]} 29. Qe2 {[%emt 0:00:45]} gxf5 {[%emt 0:00:13]} 30. exf5 {[%emt 0:00:03]} Bxf5 {[%emt 0:00:14]} 31. Ne4 {[%emt 0:00:36]} Qg6 {[%emt 0:00:01]} 32. Nf2 {[%emt 0:00:08]} Bf4 {[%emt 0:00:03]} 33. Rdd1 {[%emt 0:00:13]} Rae8 {[%emt 0:00:01]} 34. Qf3 {[%emt 0:00:19]} Be3 {[%emt 0:00:03]} 35. Kh1 {[%emt 0:00:26]} Bxc2 {[%emt 0:00:08]} 36. Qg4 {[%emt 0:00:06]} Qxg4 {[%emt 0:00:02]} 37. Nxg4 {[%emt 0:00:02]} Bxd1 {[%emt 0:00:02]} 38. Rxd1 {[%emt 0:00:03]} Bf4 {[%emt 0:00:02]} 39. Nh2 {[%emt 0:00:12]} Bxh2 {[%emt 0:00:02]} 40. Kxh2 {[%emt 0:00:02]} Rf2 {[%emt 0:00:03]} 41. Rxd6 {[%emt 0:00:03]} Rxb2 {[%emt 0:00:02]} 42. Bf7 {[%emt 0:00:06]} Rf8 {[%emt 0:00:03]} 43. Rf6 {[%emt 0:00:05]} Rd8 {[%emt 0:00:03]} 44. Be6 {[%emt 0:00:05]} Kg7 {[%emt 0:00:02]} 45. Rf7+ {[%emt 0:00:01]} Kg6 {[%emt 0:00:01]} 46. Rf3 {[%emt 0:00:03]} Rdd2 {[%emt 0:00:02]} 47. Bf5+ {[%emt 0:00:03]} Kg7 {[%emt 0:00:01]} 48. Rg3+ {[%emt 0:00:01]} Kh8 {[%emt 0:00:04]} 49. Be4 {[%emt 0:00:02]} Rb3 {[%emt 0:00:02]} 50. Rg4 {[%emt 0:00:04]} Rd4 {[%emt 0:00:03]} 51. Bxc6 {[%emt 0:00:04]} Rxg4 {[%emt 0:00:01]} 52. hxg4 {[%emt 0:00:02]} Rxa3 {[%emt 0:00:02]} 53. Bd5 {[%emt 0:00:01]} Rd3 {[%emt 0:00:02]} 54. Bf7 {[%emt 0:00:02]} a3 {[%emt 0:00:01]} 55. g5 {[%emt 0:00:03]} Rd2 {[%emt 0:00:01]} 56. Bb3 {[%emt 0:00:04]} a2 {[%emt 0:00:02]} 57. Bxa2 {[%emt 0:00:01]} Rxa2 {[%emt 0:00:01]} 58. Kg1 {[%emt 0:00:01]} b4 {[%emt 0:00:01]} 59. Kf1 {[%emt 0:00:01]} b3 {[%emt 0:00:01]} 60. Ke1 {[%emt 0:00:01]} b2 {[%emt 0:00:00]} 61. Kf1 {[%emt 0:00:01]} b1=Q# {[%emt 0:00:03]} 0-1

[Event "3rd FIDE WCCC Blitz G08 2019"]
[Site "Minsk"]
[Date "2019.08.18"]
[Round "8.2"]
[White "Phan, Nguyen Mai Chi"]
[Black "Olimova, Rukiya"]
[Result "1-0"]
[ECO "A20"]
[WhiteElo "2139"]
[BlackElo "1178"]
[Annotator "ChessBase"]
[PlyCount "108"]
[EventDate "2019.08.18"]
[EventType "swiss"]
[EventCountry "BLR"]
[SourceTitle "playchess.com"]
[Source "ChessBase"]
[SourceQuality "1"]
[TimeControl "300+2"]

1. c4 {[%emt 0:00:00]} e5 {[%emt 0:00:00]} 2. b3 {[%emt 0:00:00]} Nc6 {[%emt 0:00:05]} 3. Bb2 {[%emt 0:00:00]} Bc5 {[%emt 0:00:04]} 4. a3 {[%emt 0:00:02]} a5 {[%emt 0:00:02]} 5. d3 {[%emt 0:00:02]} d6 {[%emt 0:00:01]} 6. e3 {[%emt 0:00:01]} Be6 {[%emt 0:00:02]} 7. Nf3 {[%emt 0:00:03]} f5 {[%emt 0:00:04]} 8. Nbd2 Nf6 9. Be2 {[%emt 0:00:06]} O-O {[%emt 0:00:02]} 10. O-O {[%emt 0:00:02]} Qd7 {[%emt 0:00:05]} 11. Qc2 {[%emt 0:00:03]} Rad8 {[%emt 0:00:04]} 12. Rfe1 {[%emt 0:00:03]} h6 {[%emt 0:00:03]} 13. Rad1 {[%emt 0:00:04]} Rfe8 {[%emt 0:00:03]} 14. d4 {[%emt 0:00:06]} exd4 {[%emt 0:00:10]} 15. exd4 {[%emt 0:00:03]} Ba7 {[%emt 0:00:10]} 16. d5 {[%emt 0:00:01]} Bxd5 {[%emt 0:00:33]} 17. cxd5 {[%emt 0:00:02]} Nxd5 {[%emt 0:00:02]} 18. Bc4 {[%emt 0:00:05]} Qf7 {[%emt 0:00:12]} 19. Nf1 {[%emt 0:00:12]} Nce7 {[%emt 0:00:13]} 20. Ne3 {[%emt 0:00:04]} Bxe3 {[%emt 0:00:13]} 21. Rxe3 {[%emt 0:00:16]} Kh8 {[%emt 0:00:14]} 22. Red3 {[%emt 0:00:04]} c6 {[%emt 0:00:07]} 23. Bxd5 {[%emt 0:00:05]} Nxd5 {[%emt 0:00:03]} 24. R3d2 {[%emt 0:00:08]} Re7 {[%emt 0:00:22]} 25. Re2 {[%emt 0:00:04]} Rde8 {[%emt 0:00:02]} 26. Rde1 {[%emt 0:00:01]} Nf4 {[%emt 0:00:38]} 27. Rxe7 {[%emt 0:00:09]} Rxe7 {[%emt 0:00:03]} 28. Rxe7 {[%emt 0:00:08]} Qxe7 {[%emt 0:00:03]} 29. g3 {[%emt 0:00:12]} Nd5 {[%emt 0:00:20]} 30. Qxf5 {[%emt 0:00:16]} b5 {[%emt 0:00:28]} 31. Nh4 {[%emt 0:00:08]} Qe1+ {[%emt 0:00:07]} 32. Kg2 {[%emt 0:00:01]} Kg8 {[%emt 0:00:19]} 33. Ng6 {[%emt 0:00:18]} Qe8 {[%emt 0:00:30]} 34. Nf4 {[%emt 0:00:12]} Nxf4+ {[%emt 0:00:23]} 35. Qxf4 {[%emt 0:00:02]} Qe7 {[%emt 0:00:04]} 36. Qf3 {[%emt 0:00:04]} Qd7 {[%emt 0:00:01]} 37. Qd3 {[%emt 0:00:03]} d5 {[%emt 0:00:04]} 38. Qd4 {[%emt 0:00:01]} Kf8 {[%emt 0:00:06]} 39. Qf4+ {[%emt 0:00:09]} Ke8 {[%emt 0:00:03]} 40. Qb8+ {[%emt 0:00:04]} Qd8 {[%emt 0:00:06]} 41. Qe5+ {[%emt 0:00:05]} Qe7 {[%emt 0:00:02]} 42. Qxg7 {[%emt 0:00:04]} Qxg7 {[%emt 0:00:03]} 43. Bxg7 {[%emt 0:00:01]} h5 {[%emt 0:00:01]} 44. Kh3 {[%emt 0:00:02]} Kf7 {[%emt 0:00:01]} 45. Bd4 {[%emt 0:00:01]} Kg6 {[%emt 0:00:03]} 46. Kh4 {[%emt 0:00:01]} a4 {[%emt 0:00:03]} 47. b4 {[%emt 0:00:01]} Kh6 {[%emt 0:00:02]} 48. f4 {[%emt 0:00:01]} Kg6 {[%emt 0:00:01]} 49. g4 {[%emt 0:00:01]} hxg4 {[%emt 0:00:02]} 50. Kxg4 {[%emt 0:00:01]} Kf7 {[%emt 0:00:02]} 51. h4 {[%emt 0:00:01]} Kg8 {[%emt 0:00:05]} 52. Kg5 {[%emt 0:00:01]} Kh7 {[%emt 0:00:03]} 53. f5 {[%emt 0:00:03]} Kg8 54. Kg6 Kf8 1-0

[Event "3rd FIDE WCCC Blitz G08 2019"]
[Site "Minsk"]
[Date "2019.08.18"]
[Round "8.3"]
[White "Dandish, Izabella"]
[Black "Matskevich, Varvara"]
[Result "0-1"]
[ECO "B90"]
[WhiteElo "1563"]
[BlackElo "1176"]
[Annotator "NA"]
[PlyCount "148"]
[EventDate "2019.08.18"]
[EventType "swiss"]
[EventCountry "BLR"]
[SourceTitle "playchess.com"]
[Source "ChessBase"]
[SourceQuality "1"]
[TimeControl "300+2"]

1. e4 {[%emt 0:00:00]} c5 {[%emt 0:00:00]} 2. Nf3 {[%emt 0:00:00]} d6 {[%emt 0:00:00]} 3. d4 {[%emt 0:00:01]} cxd4 {[%emt 0:00:01]} 4. Nxd4 {[%emt 0:00:01]} Nf6 {[%emt 0:00:01]} 5. Nc3 {[%emt 0:00:01]} a6 {[%emt 0:00:01]} 6. a4 {[%emt 0:00:09]} e6 {[%emt 0:00:02]} 7. Be2 {[%emt 0:00:10]} Be7 {[%emt 0:00:02]} 8. O-O {[%emt 0:00:02]} O-O {[%emt 0:00:02]} 9. Bg5 {[%emt 0:00:14]} Qc7 {[%emt 0:00:06]} 10. Bd3 {[%emt 0:00:25]} h6 {[%emt 0:00:04]} 11. Bh4 {[%emt 0:00:01]} Nc6 {[%emt 0:00:05]} 12. Nxc6 {[%emt 0:00:18]} bxc6 {[%emt 0:00:04]} 13. Qf3 {[%emt 0:00:22]} d5 {[%emt 0:00:06]} 14. exd5 {[%emt 0:00:11]} cxd5 {[%emt 0:00:03]} 15. Bg3 {[%emt 0:00:11]} Qb6 {[%emt 0:00:08]} 16. b3 {[%emt 0:00:11]} Bb7 {[%emt 0:00:04]} 17. Qe2 {[%emt 0:00:26]} Rac8 {[%emt 0:00:10]} 18. Na2 {[%emt 0:00:09]} Kh8 {[%emt 0:00:24]} 19. Be5 {[%emt 0:00:15]} Rc6 {[%emt 0:00:30]} 20. Qe3 {[%emt 0:00:19]} Qxe3 {[%emt 0:00:06]} 21. fxe3 {[%emt 0:00:02]} Rfc8 {[%emt 0:00:05]} 22. Rf4 {[%emt 0:00:13]} Kg8 {[%emt 0:00:25]} 23. c3 {[%emt 0:00:04]} Kh8 {[%emt 0:00:19]} 24. Be2 {[%emt 0:00:05]} Kg8 {[%emt 0:00:07]} 25. Bd3 {[%emt 0:00:03]} Rd8 {[%emt 0:00:12]} 26. b4 {[%emt 0:00:06]} Rdc8 {[%emt 0:00:19]} 27. Raf1 {[%emt 0:00:08]} Rd8 {[%emt 0:00:21]} 28. Ra1 {[%emt 0:00:03]} Nd7 {[%emt 0:00:19]} 29. Bd4 {[%emt 0:00:39]} Rcc8 {[%emt 0:00:36]} 30. e4 {[%emt 0:00:16]} e5 {[%emt 0:00:12]} 31. Bxe5 {[%emt 0:00:21]} Nxe5 {[%emt 0:00:02]} 32. Be2 {[%emt 0:00:03]} dxe4 33. Rf5 {[%emt 0:00:08]} Ng6 {[%emt 0:00:12]} 34. Raf1 {[%emt 0:00:03]} Bd5 {[%emt 0:00:06]} 35. Rd1 {[%emt 0:00:03]} Bxa2 {[%emt 0:00:04]} 36. Rxd8+ {[%emt 0:00:03]} Rxd8 {[%emt 0:00:03]} 37. Kf2 {[%emt 0:00:01]} Rd5 {[%emt 0:00:09]} 38. Rxd5 {[%emt 0:00:05]} Bxd5 {[%emt 0:00:01]} 39. Bxa6 {[%emt 0:00:02]} Ne5 {[%emt 0:00:07]} 40. b5 {[%emt 0:00:01]} Bd6 {[%emt 0:00:04]} 41. b6 {[%emt 0:00:02]} Bb8 {[%emt 0:00:02]} 42. a5 {[%emt 0:00:02]} Nc6 {[%emt 0:00:03]} 43. c4 {[%emt 0:00:04]} Be6 {[%emt 0:00:04]} 44. c5 {[%emt 0:00:02]} Nxa5 {[%emt 0:00:03]} 45. Bb5 {[%emt 0:00:03]} Bd5 {[%emt 0:00:01]} 46. c6 {[%emt 0:00:04]} Bxc6 47. Be2 {[%emt 0:00:03]} f5 {[%emt 0:00:07]} 48. Ke3 {[%emt 0:00:02]} Bd5 {[%emt 0:00:04]} 49. Kd4 {[%emt 0:00:01]} Bc6 {[%emt 0:00:05]} 50. Kc5 {[%emt 0:00:03]} Kf7 {[%emt 0:00:00]} 51. Kb4 {[%emt 0:00:03]} Nb7 {[%emt 0:00:00]} 52. Bc4+ {[%emt 0:00:01]} Ke7 {[%emt 0:00:00]} 53. Kc3 {[%emt 0:00:02]} Nd6 {[%emt 0:00:00]} 54. Bb3 {[%emt 0:00:02]} Nc8 {[%emt 0:00:00]} 55. Kd4 {[%emt 0:00:03]} Nxb6 {[%emt 0:00:00]} 56. g3 {[%emt 0:00:04]} Kd6 {[%emt 0:00:00]} 57. h3 {[%emt 0:00:02]} Nd5 {[%emt 0:00:00]} 58. g4 {[%emt 0:00:05]} g6 {[%emt 0:00:00]} 59. Bxd5 {[%emt 0:00:04]} Bxd5 {[%emt 0:00:00]} 60. Kc3 {[%emt 0:00:02]} h5 {[%emt 0:00:00]} 61. g5 {[%emt 0:00:01]} f4 {[%emt 0:00:00]} 62. h4 {[%emt 0:00:02]} Ke5 {[%emt 0:00:00]} 63. Kd2 {[%emt 0:00:01]} Kf5 {[%emt 0:00:00]} 64. Ke2 {[%emt 0:00:02]} Kg4 {[%emt 0:00:00]} 65. Kf2 {[%emt 0:00:01]} Ba7+ {[%emt 0:00:00]} 66. Kg2 {[%emt 0:00:02]} f3+ {[%emt 0:00:00]} 67. Kf1 {[%emt 0:00:01]} e3 {[%emt 0:00:00]} 68. Ke1 {[%emt 0:00:01]} f2+ {[%emt 0:00:00]} 69. Ke2 {[%emt 0:00:06]} Bc4+ 70. Kd1 {[%emt 0:00:03]} f1=Q+ {[%emt 0:00:02]} 71. Kc2 {[%emt 0:00:01]} e2 {[%emt 0:00:04]} 72. Kb2 {[%emt 0:00:02]} e1=Q {[%emt 0:00:08]} 73. Ka3 {[%emt 0:00:05]} Bc5+ {[%emt 0:00:05]} 74. Kb2 {[%emt 0:00:04]} Qd2# {[%emt 0:00:03]} 0-1

[Event "3rd FIDE WCCC Blitz G08 2019"]
[Site "Minsk"]
[Date "2019.08.18"]
[Round "8.4"]
[White "Frolova, Umila"]
[Black "Lajdamik, Kinga"]
[Result "1-0"]
[ECO "B01"]
[WhiteElo "1252"]
[BlackElo "1145"]
[Annotator "NA"]
[PlyCount "40"]
[EventDate "2019.08.18"]
[EventType "swiss"]
[EventCountry "BLR"]
[SourceTitle "playchess.com"]
[Source "ChessBase"]
[SourceQuality "1"]
[TimeControl "300+2"]

1. e4 {[%emt 0:00:00]} d5 {[%emt 0:00:00]} 2. Nf3 {[%emt 0:00:00]} dxe4 {[%emt 0:00:01]} 3. Ng5 {[%emt 0:00:01]} Nf6 {[%emt 0:00:06]} 4. Nc3 {[%emt 0:00:02]} Bf5 {[%emt 0:00:05]} 5. Qe2 {[%emt 0:00:07]} Nc6 {[%emt 0:00:24]} 6. Ngxe4 {[%emt 0:00:04]} Nxe4 {[%emt 0:00:16]} 7. Nxe4 {[%emt 0:00:01]} Nd4 {[%emt 0:00:34]} 8. Qd3 {[%emt 0:00:21]} Qd5 {[%emt 0:00:22]} 9. f3 {[%emt 0:00:21]} Bxe4 {[%emt 0:01:02]} 10. fxe4 {[%emt 0:00:01]} Qe5 {[%emt 0:00:08]} 11. Be2 {[%emt 0:00:14]} O-O-O {[%emt 0:00:15]} 12. c3 {[%emt 0:01:19]} Nb3 {[%emt 0:00:12]} 13. Qh3+ {[%emt 0:01:24]} e6 {[%emt 0:00:02]} 14. axb3 {[%emt 0:00:02]} Qxe4 {[%emt 0:00:11]} 15. Rxa7 {[%emt 0:00:10]} Kb8 {[%emt 0:00:02]} 16. Ra1 {[%emt 0:00:04]} Bc5 {[%emt 0:00:08]} 17. Qf3 {[%emt 0:00:06]} Qe5 {[%emt 0:00:44]} 18. d4 {[%emt 0:00:05]} Bxd4 {[%emt 0:00:17]} 19. cxd4 {[%emt 0:00:01]} Rxd4 {[%emt 0:00:04]} 20. O-O {[%emt 0:00:15]} Rh4 1-0

[Event "3rd FIDE WCCC Blitz G08 2019"]
[Site "Minsk"]
[Date "2019.08.18"]
[Round "8.5"]
[White "Asachenko, Ksenia"]
[Black "Trishkina, Evgeniya"]
[Result "1-0"]
[ECO "C64"]
[WhiteElo "1169"]
[BlackElo "1328"]
[Annotator "NA"]
[PlyCount "24"]
[EventDate "2019.08.18"]
[EventType "swiss"]
[EventCountry "BLR"]
[SourceTitle "playchess.com"]
[Source "ChessBase"]
[SourceQuality "1"]
[TimeControl "300+2"]

1. e4 {[%emt 0:00:00]} e5 {[%emt 0:00:00]} 2. Nf3 {[%emt 0:00:02]} Nc6 {[%emt 0:00:00]} 3. Bb5 {[%emt 0:00:01]} Bc5 {[%emt 0:00:02]} 4. c3 {[%emt 0:00:05]} d6 {[%emt 0:00:05]} 5. O-O {[%emt 0:00:02]} Nf6 {[%emt 0:00:01]} 6. d4 {[%emt 0:00:02]} exd4 {[%emt 0:00:02]} 7. cxd4 {[%emt 0:00:02]} Bb6 {[%emt 0:00:02]} 8. d5 {[%emt 0:00:05]} Bd7 {[%emt 0:00:03]} 9. dxc6 {[%emt 0:00:02]} bxc6 {[%emt 0:00:02]} 10. Bd3 {[%emt 0:00:03]} O-O 11. e5 {[%emt 0:00:04]} dxe5 {[%emt 0:00:03]} 12. Nxe5 {[%emt 0:00:03]} Re8 {[%emt 0:00:10]} 1-0

[Event "3rd FIDE WCCC Blitz G08 2019"]
[Site "Minsk"]
[Date "2019.08.18"]
[Round "8.6"]
[White "Skamaroshchanka, Daryia"]
[Black "Kudrina, Evelina"]
[Result "0-1"]
[ECO "A00"]
[WhiteElo "1034"]
[BlackElo "1194"]
[Annotator "NA"]
[PlyCount "140"]
[EventDate "2019.08.18"]
[EventType "swiss"]
[EventCountry "BLR"]
[SourceTitle "playchess.com"]
[Source "ChessBase"]
[SourceQuality "1"]
[TimeControl "300+2"]

1. g3 {[%emt 0:00:00]} d5 {[%emt 0:00:03]} 2. Bg2 {[%emt 0:00:01]} e5 {[%emt 0:00:08]} 3. b3 {[%emt 0:00:01]} c5 {[%emt 0:00:03]} 4. Bb2 {[%emt 0:00:01]} Nc6 {[%emt 0:00:08]} 5. d3 {[%emt 0:00:02]} Nf6 {[%emt 0:00:05]} 6. Nd2 {[%emt 0:00:02]} Bd6 {[%emt 0:00:07]} 7. e3 {[%emt 0:00:01]} O-O {[%emt 0:00:03]} 8. Ne2 {[%emt 0:00:01]} Bg4 {[%emt 0:00:02]} 9. O-O {[%emt 0:00:10]} Qd7 {[%emt 0:00:03]} 10. e4 d4 11. Qe1 {[%emt 0:00:39]} Bh3 {[%emt 0:00:36]} 12. f4 {[%emt 0:00:11]} Bxg2 {[%emt 0:00:44]} 13. Kxg2 {[%emt 0:00:01]} exf4 {[%emt 0:00:02]} 14. Nxf4 {[%emt 0:00:02]} Rfe8 {[%emt 0:00:24]} 15. Nc4 {[%emt 0:00:07]} b5 {[%emt 0:00:13]} 16. Nxd6 {[%emt 0:00:04]} Qxd6 {[%emt 0:00:01]} 17. c3 {[%emt 0:00:16]} Ng4 {[%emt 0:00:19]} 18. cxd4 {[%emt 0:00:11]} cxd4 {[%emt 0:00:02]} 19. Nd5 {[%emt 0:00:36]} Qh6 {[%emt 0:01:00]} 20. h3 {[%emt 0:00:19]} Ne3+ {[%emt 0:00:19]} 21. Nxe3 {[%emt 0:00:03]} dxe3 {[%emt 0:00:10]} 22. Bc1 {[%emt 0:00:02]} Qd6 {[%emt 0:00:41]} 23. Qxe3 {[%emt 0:00:06]} Nd4 {[%emt 0:00:01]} 24. Bb2 {[%emt 0:00:07]} Nc2 {[%emt 0:00:01]} 25. Qf4 {[%emt 0:00:07]} Qxf4 {[%emt 0:00:05]} 26. Rxf4 {[%emt 0:00:01]} Nxa1 {[%emt 0:00:00]} 27. Bxa1 {[%emt 0:00:00]} f6 {[%emt 0:00:04]} 28. Rf5 {[%emt 0:00:03]} a6 {[%emt 0:00:05]} 29. Kf3 {[%emt 0:00:07]} Rac8 {[%emt 0:00:03]} 30. a4 {[%emt 0:00:16]} Rc1 {[%emt 0:00:08]} 31. Bd4 {[%emt 0:00:08]} bxa4 {[%emt 0:00:02]} 32. bxa4 {[%emt 0:00:03]} Rd8 {[%emt 0:00:12]} 33. Rd5 {[%emt 0:00:02]} Rxd5 {[%emt 0:00:01]} 34. exd5 {[%emt 0:00:02]} Kf7 {[%emt 0:00:00]} 35. Ke4 {[%emt 0:00:15]} Rh1 {[%emt 0:00:04]} 36. h4 {[%emt 0:00:03]} Rc1 {[%emt 0:00:01]} 37. Bb6 {[%emt 0:00:10]} Ra1 {[%emt 0:00:03]} 38. a5 {[%emt 0:00:01]} Rc1 {[%emt 0:00:01]} 39. Kd4 {[%emt 0:00:07]} Rc8 {[%emt 0:00:02]} 40. d6 {[%emt 0:00:05]} Ke6 {[%emt 0:00:00]} 41. Bc7 {[%emt 0:00:02]} g5 {[%emt 0:00:03]} 42. hxg5 {[%emt 0:00:03]} fxg5 {[%emt 0:00:01]} 43. Kc5 {[%emt 0:00:01]} Kd7 {[%emt 0:00:01]} 44. Kb6 {[%emt 0:00:04]} h5 {[%emt 0:00:03]} 45. Kxa6 {[%emt 0:00:09]} Rxc7 {[%emt 0:00:01]} 46. dxc7 {[%emt 0:00:04]} Kxc7 {[%emt 0:00:01]} 47. Kb5 {[%emt 0:00:02]} Kb7 {[%emt 0:00:01]} 48. Kc4 {[%emt 0:00:05]} h4 {[%emt 0:00:01]} 49. gxh4 {[%emt 0:00:05]} gxh4 {[%emt 0:00:01]} 50. a6+ {[%emt 0:00:03]} Kxa6 {[%emt 0:00:02]} 51. d4 {[%emt 0:00:14]} h3 {[%emt 0:00:01]} 52. Kd3 {[%emt 0:00:02]} h2 {[%emt 0:00:00]} 53. d5 {[%emt 0:00:01]} h1=Q {[%emt 0:00:02]} 54. Kd4 {[%emt 0:00:01]} Qh8+ {[%emt 0:00:01]} 55. Kc5 {[%emt 0:00:02]} Qd8 {[%emt 0:00:02]} 56. d6 {[%emt 0:00:01]} Ka5 {[%emt 0:00:01]} 57. Kc6 {[%emt 0:00:02]} Kb4 {[%emt 0:00:01]} 58. Kd5 {[%emt 0:00:03]} Kb5 {[%emt 0:00:01]} 59. Ke6 {[%emt 0:00:05]} Kc6 {[%emt 0:00:01]} 60. Ke5 {[%emt 0:00:01]} Qxd6+ {[%emt 0:00:02]} 61. Ke4 {[%emt 0:00:00]} Qd5+ {[%emt 0:00:00]} 62. Ke3 {[%emt 0:00:03]} Qc4 {[%emt 0:00:01]} 63. Kf3 {[%emt 0:00:02]} Qd4 {[%emt 0:00:01]} 64. Ke2 {[%emt 0:00:01]} Qc3 {[%emt 0:00:01]} 65. Kf2 {[%emt 0:00:01]} Qd3 {[%emt 0:00:01]} 66. Ke1 {[%emt 0:00:01]} Qc2 {[%emt 0:00:01]} 67. Kf1 {[%emt 0:00:01]} Kd5 {[%emt 0:00:00]} 68. Ke1 {[%emt 0:00:02]} Ke4 {[%emt 0:00:01]} 69. Kf1 {[%emt 0:00:01]} Kf3 {[%emt 0:00:01]} 70. Ke1 {[%emt 0:00:01]} Qe2# {[%emt 0:00:01]} 0-1

[Event "3rd FIDE WCCC Blitz G08 2019"]
[Site "Minsk"]
[Date "2019.08.18"]
[Round "9.1"]
[White "Preobrazhenskaya, Diana"]
[Black "Frolova, Umila"]
[Result "1-0"]
[ECO "B06"]
[WhiteElo "1361"]
[BlackElo "1252"]
[Annotator "NA"]
[PlyCount "83"]
[EventDate "2019.08.18"]
[EventType "swiss"]
[EventCountry "BLR"]
[SourceTitle "playchess.com"]
[Source "ChessBase"]
[SourceQuality "1"]
[TimeControl "300+2"]

1. e4 {[%emt 0:00:00]} g6 {[%emt 0:00:00]} 2. d4 {[%emt 0:00:01]} Bg7 {[%emt 0:00:00]} 3. Nf3 d6 4. Bd3 {[%emt 0:00:06]} Nf6 {[%emt 0:00:00]} 5. O-O {[%emt 0:00:03]} O-O {[%emt 0:00:01]} 6. Nbd2 {[%emt 0:00:07]} e5 {[%emt 0:00:12]} 7. dxe5 {[%emt 0:00:12]} dxe5 {[%emt 0:00:02]} 8. Nxe5 {[%emt 0:00:29]} Nxe4 {[%emt 0:00:02]} 9. Nxe4 {[%emt 0:00:02]} Bxe5 {[%emt 0:00:02]} 10. Bh6 {[%emt 0:00:22]} Bg7 {[%emt 0:00:01]} 11. Bxg7 Kxg7 {[%emt 0:00:01]} 12. Qf3 {[%emt 0:00:14]} Nc6 {[%emt 0:00:04]} 13. Qf4 {[%emt 0:00:19]} Qe7 {[%emt 0:00:32]} 14. Rfe1 {[%emt 0:00:12]} Be6 {[%emt 0:00:11]} 15. Ng5 {[%emt 0:00:20]} Qd7 {[%emt 0:00:56]} 16. Qh4 {[%emt 0:00:28]} h5 {[%emt 0:00:08]} 17. Nxe6+ {[%emt 0:00:17]} fxe6 {[%emt 0:00:03]} 18. Qg3 {[%emt 0:00:12]} Qf7 {[%emt 0:00:06]} 19. Bc4 {[%emt 0:00:09]} Rae8 {[%emt 0:00:30]} 20. Qc3+ {[%emt 0:00:05]} Kh7 {[%emt 0:00:11]} 21. f3 {[%emt 0:00:05]} Qf6 {[%emt 0:00:13]} 22. Qd2 {[%emt 0:00:12]} Ne5 {[%emt 0:00:14]} 23. Bb3 {[%emt 0:00:16]} c5 {[%emt 0:00:19]} 24. Qc3 {[%emt 0:00:04]} Nd7 {[%emt 0:00:38]} 25. Qd2 {[%emt 0:00:16]} Qd4+ {[%emt 0:00:06]} 26. Qxd4 {[%emt 0:00:02]} cxd4 {[%emt 0:00:01]} 27. Bxe6 {[%emt 0:00:05]} Nc5 {[%emt 0:00:16]} 28. Bc4 {[%emt 0:00:05]} Re3 {[%emt 0:00:17]} 29. Rxe3 {[%emt 0:00:10]} dxe3 {[%emt 0:00:01]} 30. Re1 {[%emt 0:00:02]} Re8 {[%emt 0:00:02]} 31. b4 {[%emt 0:00:06]} Na4 {[%emt 0:00:14]} 32. Bb5 {[%emt 0:00:02]} Re7 {[%emt 0:00:15]} 33. Bxa4 {[%emt 0:00:02]} a6 {[%emt 0:00:03]} 34. c4 {[%emt 0:00:07]} Kg7 {[%emt 0:00:10]} 35. Kf1 {[%emt 0:00:09]} Kf6 {[%emt 0:00:01]} 36. Ke2 {[%emt 0:00:02]} Ke5 {[%emt 0:00:02]} 37. Kxe3 {[%emt 0:00:08]} Kd6+ {[%emt 0:00:03]} 38. Kd2 {[%emt 0:00:02]} Rc7 {[%emt 0:00:07]} 39. c5+ {[%emt 0:00:03]} Kd5 {[%emt 0:00:08]} 40. Bb3+ {[%emt 0:00:03]} Kc6 {[%emt 0:00:03]} 41. Re6+ {[%emt 0:00:03]} Kb5 {[%emt 0:00:02]} 42. Rb6# {[%emt 0:00:03]} 1-0